bitfinex/quotes_ETHUSD_20220119
["timestamp","ask_amount","ask_price","bid_price","bid_amount"]
[1642622604764,1.91256118,3122.8,3122.1,2.97467122]
[1642622604765,0.30568423,3122.8,3122.1,2.97467122]
[1642622604967,0.00511581,3122.7,3122.2,1.08812864]
[1642622605166,0.30511581,3122.7,3122.2,1.08812864]
[1642622605368,0.00454739,3122.6,3122.2,1.08812864]
[1642622605866,0.00397896,3122.5,3122.2,1.08812864]
[1642622606266,0.00341054,3122.4,3122.2,1.08812864]
[1642622606567,0.00284212,3122.3,3122.2,1.08812864]
[1642622606968,0.00284212,3122.3,3122.2,5.78812864]
[1642622607916,0.00284212,3122.3,3122.2,6.73812864]
[1642622609320,0.00284212,3122.3,3122.2,7.46515118]
[1642622609516,0.00284212,3122.3,3122.2,1.81515118]
[1642622609919,0.00284212,3122.3,3122.2,5.06515118]
[1642622610319,0.00284212,3122.3,3122.2,8.26515118]
[1642622610719,0.00284212,3122.3,3122.2,7.53812864]
[1642622611164,0.00284212,3122.3,3122.2,8.83812864]
[1642622611369,4.212e-05,3122.3,3122.2,9.29912864]
[1642622611762,4.212e-05,3122.3,3122.2,9.45926864]
[1642622611965,4.212e-05,3122.3,3122.2,11.85926864]
[1642622612263,4.212e-05,3122.3,3122.2,38.46566864]
[1642622612461,4.212e-05,3122.3,3122.2,40.50638384]
[1642622612663,4.212e-05,3122.3,3122.2,21.78638384]
[1642622613262,4.212e-05,3122.3,3122.2,20.11333184]
[1642622613465,4.212e-05,3122.3,3122.2,18.07261664]
[1642622614461,4.212e-05,3122.3,3122.2,17.34566864]
[1642622616318,4.212e-05,3122.3,3122.2,15.88552864]
[1642622617519,4.212e-05,3122.3,3122.2,16.18552864]
[1642622617718,4.212e-05,3122.3,3122.2,17.18552864]
[1642622618966,4.212e-05,3122.3,3122.2,17.34566864]
[1642622621173,4.212e-05,3122.3,3122.2,15.88552864]
[1642622621473,4.212e-05,3122.3,3122.2,12.17452864]
[1642622621673,4.212e-05,3122.3,3122.2,11.0864]
[1642622621873,4.212e-05,3122.3,3122.2,3.2]
[1642622633420,4.59321626,3122.3,3122.2,3.2]
[1642622633866,5.59321626,3122.3,3122.2,3.2]
[1642622634870,2.61312058,3122.3,3122.2,3.2]
[1642622635471,1.61312058,3122.3,3122.2,3.2]
[1642622636072,5.65,3122.2,3121.7,0.0007701]
[1642622636276,5.66254392,3121.8,3121.7,0.0007701]
[1642622636474,24.84354392,3121.8,3121.7,0.0007701]
[1642622636674,28.05662238,3121.8,3121.7,0.0007701]
[1642622636875,30.27746115,3121.8,3121.7,0.0007701]
[1642622637076,1.41566679,3121.0,3120.3,1.09385433]
[1642622637312,1.2186,3121.0,3120.3,1.09385433]
[1642622637514,1.2186,3121.0,3120.4,0.01075793]
[1642622637714,1.2186,3121.0,3120.5,1.09385433]
[1642622637913,1.2186,3121.0,3120.4,0.01075793]
[1642622638112,1.2186,3121.0,3120.6,0.00962108]
[1642622638317,1.2186,3121.0,3120.7,1.09385433]
[1642622638515,1.2186,3121.0,3120.6,0.00962108]
[1642622638713,1.2186,3121.0,3120.8,0.00848423]
[1642622638914,1.2186,3121.0,3120.5,0.01018951]
[1642622639114,1.2186,3121.0,3120.8,0.00848423]
[1642622639315,1.2186,3121.0,3120.5,0.01018951]
[1642622639515,1.2186,3121.0,3120.7,0.00905266]
[1642622639715,1.2186,3121.0,3120.5,0.01018951]
[1642622639919,0.3,3121.0,3120.7,0.00905266]
[1642622640120,0.128,3121.6,3120.8,1.1056294]
[1642622640121,0.3,3121.1,3120.8,1.1056294]
[1642622640319,3.03204003,3121.5,3120.9,1.1056294]
[1642622640518,1.3,3121.6,3120.9,0.00791581]
[1642622640719,1.0,3121.4,3121.0,0.00734739]
[1642622640922,0.3,3121.4,3120.5,0.01018951]
[1642622641183,3.02904945,3121.5,3120.6,1.10552619]
[1642622641385,0.3,3121.5,3121.0,1.33753439]
[1642622641584,0.3,3121.4,3121.0,1.33753439]
[1642622641784,0.3,3121.4,3121.1,0.00677896]
[1642622642084,0.3,3121.6,3121.1,0.00677896]
[1642622642285,1.2246,3121.7,3121.1,0.00677896]
[1642622642286,1.5246,3121.7,3121.1,0.00677896]
[1642622642485,4.34510097,3122.7,3121.2,0.98308706]
[1642622642486,0.128,3122.2,3121.2,0.98308706]
[1642622642686,1.71190408,3122.0,3121.2,0.98308706]
[1642622642888,0.13819997,3122.3,3121.3,0.00564212]
[1642622643284,1.71312846,3122.2,3121.5,1.29967041]
[1642622643685,2.01312846,3122.2,3121.6,0.00393685]
[1642622643884,0.3,3122.2,3121.6,0.00393685]
[1642622644085,0.43819997,3122.3,3121.6,0.00393685]
[1642622644286,0.43819997,3122.3,3121.7,0.98315024]
[1642622644485,0.43819997,3122.3,3121.6,0.00393685]
[1642622644686,0.43819997,3122.3,3121.8,0.0028]
[1642622644918,0.43819997,3122.3,3121.6,0.00393685]
[1642622645118,0.43819997,3122.3,3121.8,0.0028]
[1642622645322,0.43819997,3122.3,3121.2,0.00621054]
[1642622645521,0.43819997,3122.3,3121.3,0.98383131]
[1642622645522,1.70637991,3122.2,3121.3,0.98383131]
[1642622645721,2.00637991,3122.2,3121.8,1.11245903]
[1642622646027,2.00637991,3122.2,3121.9,0.00223158]
[1642622646028,0.3,3122.2,3121.9,0.00223158]
[1642622646221,0.3,3122.3,3121.9,0.00223158]
[1642622646421,1.0,3122.5,3121.9,0.00223158]
[1642622646621,1.30117896,3122.5,3121.9,0.00223158]
[1642622646824,1.70680247,3122.4,3121.9,0.00223158]
[1642622647021,1.30117896,3122.5,3121.9,0.00223158]
[1642622647423,1.7078031,3122.4,3121.9,0.00223158]
[1642622647622,1.30117896,3122.5,3121.9,0.00223158]
[1642622648324,1.70794152,3122.4,3121.9,0.00223158]
[1642622648881,1.30117896,3122.5,3121.9,0.00223158]
[1642622649881,1.60117896,3122.5,3121.9,0.00223158]
[1642622650082,1.70843779,3122.4,3121.9,0.00223158]
[1642622650881,1.70843779,3122.4,3121.5,0.98674131]
[1642622651086,1.70843779,3122.4,3121.6,0.00393685]
[1642622651484,1.70843779,3122.4,3121.5,0.00450527]
[1642622654920,0.128,3122.3,3121.5,0.00450527]
[1642622655120,1.70843779,3122.2,3121.5,0.00450527]
[1642622655320,2.00843779,3122.2,3121.5,0.00450527]
[1642622655523,1.70843779,3122.1,3121.5,0.00450527]
[1642622657671,1.70843779,3122.1,3121.6,0.98391351]
[1642622657872,1.83643779,3122.1,3121.5,0.00450527]
[1642622658073,0.128,3122.1,3121.7,0.00336842]
[1642622658273,0.128,3122.1,3121.5,0.98842539]
[1642622658274,1.7075843,3122.0,3121.5,0.98842539]
[1642622658472,1.7075843,3122.0,3121.5,0.00450527]
[1642622658673,2.0075843,3122.0,3121.6,0.00393685]
[1642622658977,0.3,3121.9,3121.5,0.00450527]
[1642622659272,0.128,3122.4,3121.5,0.00450527]
[1642622659473,1.70839302,3122.3,3121.6,0.98417692]
[1642622659821,0.128,3122.2,3121.7,0.00336842]
[1642622660017,1.70839302,3122.1,3121.7,0.00336842]
[1642622660318,2.00839302,3122.1,3121.5,0.98882972]
[1642622660519,1.70839302,3122.0,3121.8,1.19968769]
[1642622660719,0.3,3122.1,3121.8,1.19968769]
[1642622660919,0.3,3122.3,3121.9,0.00223158]
[1642622661121,1.70944634,3122.2,3121.9,0.00223158]
[1642622661523,1.70944634,3122.2,3121.5,0.98961998]
[1642622661524,1.70944634,3122.1,3121.5,0.98961998]
[1642622661720,1.70944634,3122.1,3121.9,3.2]
[1642622662120,1.70944634,3122.1,3122.0,0.00166315]
[1642622662322,1.70944634,3122.1,3122.0,2.25166315]
[1642622662920,1.7103087,3122.1,3122.0,2.25166315]
[1642622663322,0.3,3122.1,3122.0,2.25166315]
[1642622663567,2.0103087,3122.1,3122.0,2.25166315]
[1642622663769,1.7103087,3122.1,3122.0,2.25166315]
[1642622665172,1.71148766,3122.5,3122.0,3.2382767]
[1642622665373,1.71242743,3122.4,3122.1,0.98661355]
[1642622665573,1.71279898,3122.3,3122.1,0.98770828]
[1642622665773,0.00117896,3122.5,3122.1,0.00109473]
[1642622665774,1.71279898,3122.2,3122.1,0.00109473]
[1642622666174,1.71397794,3122.5,3122.1,0.00109473]
[1642622666375,1.71397794,3122.5,3122.0,0.00166315]
[1642622666376,1.84079898,3122.4,3122.0,0.00166315]
[1642622666574,1.71279898,3122.3,3122.0,0.00166315]
[1642622666780,0.128,3122.2,3122.0,0.00166315]
[1642622666975,1.71279898,3122.1,3122.0,0.00166315]
[1642622667439,2.01279898,3122.1,3122.0,0.00166315]
[1642622668929,2.01279898,3122.1,3122.0,0.98955887]
[1642622669130,1.71279898,3122.1,3122.0,0.98955887]
[1642622669333,1.71279898,3122.1,3122.0,4.33955887]
[1642622669730,1.71397794,3122.5,3122.0,4.33955887]
[1642622669934,1.71397794,3122.5,3122.1,0.98789572]
[1642622670135,1.71397794,3122.5,3122.1,0.98899045]
[1642622670337,1.71397794,3122.5,3122.2,1.19193052]
[1642622670536,3.01397794,3122.5,3122.2,1.19193052]
[1642622670737,1.71279898,3122.4,3122.2,1.19193052]
[1642622670936,1.71279898,3122.4,3122.1,0.00109473]
[1642622671569,1.71279898,3122.4,3122.0,0.00166315]
[1642622671768,1.71279898,3122.4,3122.1,0.00109473]
[1642622671973,1.71279898,3122.4,3122.0,0.00166315]
[1642622674472,1.84079898,3122.4,3122.0,0.00166315]
[1642622674671,1.71279898,3122.3,3122.0,0.00166315]
[1642622674934,2.01279898,3122.3,3122.0,0.98969986]
[1642622675133,1.71279898,3122.2,3122.0,0.00166315]
[1642622675333,2.01279898,3122.2,3122.1,0.00109473]
[1642622675532,2.01279898,3122.2,3122.0,0.00166315]
[1642622675734,1.71279898,3122.1,3122.0,0.00166315]
[1642622675933,1.71279898,3122.1,3122.0,0.98980928]
[1642622676534,1.71279898,3122.1,3122.0,0.00166315]
[1642622680572,1.71279898,3122.1,3122.0,0.99489451]
[1642622681174,0.26971221,3122.5,3122.0,4.99489451]
[1642622681372,1.2047,3122.7,3122.1,0.99323136]
[1642622681373,1.71388992,3122.4,3122.1,0.99323136]
[1642622681574,1.71388992,3122.4,3122.2,2.91556933]
[1642622681772,3.66136529,3123.2,3122.3,6.19323136]
[1642622681773,0.00174739,3122.6,3122.3,6.19323136]
[1642622681972,0.00174739,3122.6,3122.4,0.99323136]
[1642622682173,0.00117896,3122.5,3122.4,0.99323136]
[1642622682625,0.0045895,3122.5,3122.4,2.29503655]
[1642622683830,0.0045895,3122.5,3122.4,3.62360779]
[1642622684631,0.0045895,3122.5,3122.4,6.61112878]
[1642622684831,0.0045895,3122.5,3122.4,3.62360779]
[1642622685035,0.0045895,3122.5,3122.4,6.54535434]
[1642622685231,0.0045895,3122.5,3122.4,3.62360779]
[1642622687070,1.57957071,3123.1,3122.4,3.62360779]
[1642622687272,0.128,3123.0,3122.5,0.99323136]
[1642622687574,1.87957071,3123.1,3122.6,0.00284211]
[1642622687771,1.87957071,3123.1,3122.6,0.99607347]
[1642622687972,1.87957071,3123.1,3122.6,0.00284211]
[1642622688173,0.3,3123.1,3122.7,0.00227369]
[1642622688372,0.3,3123.1,3122.5,0.99546205]
[1642622688572,1.1312,3123.3,3122.6,0.00284211]
[1642622688573,2.5592,3123.3,3122.6,0.00284211]
[1642622688774,1.5592,3123.3,3122.6,0.00284211]
[1642622689172,1.8592,3123.3,3122.6,0.00284211]
[1642622689573,1.5592,3123.3,3122.6,0.00284211]
[1642622692129,1.5092,3123.3,3122.6,0.99489362]
[1642622692330,1.5092,3123.3,3122.7,0.99205151]
[1642622692530,1.5092,3123.3,3122.7,0.9943252]
[1642622692531,2.3812,3123.3,3122.7,0.9943252]
[1642622692834,2.3812,3123.3,3122.8,0.00170527]
[1642622693033,1.3812,3123.3,3122.8,0.00170527]
[1642622693234,0.26619997,3123.4,3122.7,3.8644434]
[1642622693235,0.128,3123.4,3122.7,3.8644434]
[1642622693434,2.43296529,3123.8,3122.8,0.99074554]
[1642622693669,0.30140353,3123.9,3122.9,2.8028187]
[1642622693670,0.00113685,3123.3,3122.9,2.8028187]
[1642622693876,0.00113685,3123.3,3122.9,2.78124709]
[1642622694073,2.73436882,3123.9,3122.9,0.00113684]
[1642622694074,0.00397897,3123.8,3122.9,0.00113684]
[1642622694275,0.00397897,3123.8,3123.7,1.24842714]
[1642622694474,2.73436882,3123.9,3123.7,1.24842714]
[1642622694475,2.60636882,3123.9,3123.7,1.24842714]
[1642622694875,2.90636882,3123.9,3123.7,1.24842714]
[1642622695076,2.60636882,3123.9,3123.7,1.24842714]
[1642622695583,0.30140353,3123.9,3123.5,1.40627581]
[1642622695777,2.60636882,3123.9,3123.5,1.40627581]
[1642622696175,1.62569434,3123.7,3123.5,1.40627581]
[1642622696376,1.62569434,3123.7,3122.9,3.6012]
[1642622696577,0.00284212,3123.6,3122.9,3.6012]
[1642622696781,1.72410447,3123.6,3122.9,3.6012]
[1642622696979,0.0022737,3123.5,3122.9,3.6012]
[1642622697178,1.62796804,3123.5,3122.9,3.6012]
[1642622697435,0.00170528,3123.4,3122.9,3.6012]
[1642622697636,1.85096763,3123.4,3122.9,3.6012]
[1642622697835,1.7223992,3123.3,3122.9,3.6012]
[1642622698034,2.0223992,3123.3,3123.0,1.55718993]
[1642622698239,1.72126235,3123.2,3123.0,1.55718993]
[1642622698434,1.72126235,3123.2,3122.7,0.43467505]
[1642622698636,0.00170527,3123.1,3123.0,1.27173429]
[1642622698838,1.72296762,3123.1,3123.0,1.27173429]
[1642622699038,2.02296762,3123.1,3123.0,1.27173429]
[1642622699839,1.72296762,3123.1,3123.0,1.27173429]
[1642622702373,1.72296762,3123.1,3123.0,4.47173429]
[1642622702978,0.00170527,3123.1,3123.0,8.3292059]
[1642622703576,0.00170527,3123.1,3123.0,9.4572059]
[1642622703775,0.00170527,3123.1,3123.0,12.0572059]
[1642622703977,0.00170527,3123.1,3123.0,13.5292059]
[1642622704819,0.00170527,3123.1,3123.0,13.6893459]
[1642622705723,0.00170527,3123.1,3123.0,13.4009459]
[1642622706123,0.00170527,3123.1,3123.0,11.1009459]
[1642622706321,0.00170527,3123.1,3123.0,10.3783459]
[1642622706525,1.50747123,3124.2,3124.0,1.18225539]
[1642622706724,1.50747123,3124.2,3123.1,5.65]
[1642622706725,1.80747123,3124.2,3124.1,1.52635157]
[1642622709583,1.50747123,3124.2,3124.1,4.30577082]
[1642622709778,12.05276776,3124.9,3124.1,4.73377082]
[1642622709984,7.32,3125.0,3124.1,4.73377082]
[1642622710183,4.03389983,3126.0,3124.1,4.73377082]
[1642622710184,0.00738951,3124.4,3124.2,1.0]
[1642622710383,0.00738951,3124.4,3124.3,9.22685421]
[1642622710681,0.1279,3126.0,3125.1,1.18856702]
[1642622710682,1.75369434,3125.5,3125.1,1.18856702]
[1642622710881,1.62569434,3125.5,3125.4,1.3218666]
[1642622711087,0.1279,3125.7,3125.4,1.3218666]
[1642622711088,1.75359434,3125.7,3125.4,1.3218666]
[1642622711284,0.1279,3125.7,3125.4,1.3218666]
[1642622711485,0.01421059,3125.6,3125.4,1.3218666]
[1642622711782,10.54156907,3126.1,3125.4,1.3218666]
[1642622711783,0.01364217,3125.5,3125.4,1.3218666]
[1642622712824,0.01364217,3125.5,3125.4,4.5218666]
[1642622713228,0.01364217,3125.5,3125.4,7.44276584]
[1642622713429,0.01364217,3125.5,3125.4,3.2]
[1642622713830,2.54154217,3125.5,3125.4,3.2]
[1642622714128,0.01364217,3125.5,3125.4,3.2]
[1642622715734,0.01364217,3125.5,3125.4,9.6904697]
[1642622716082,0.01364217,3125.5,3125.4,9.9904697]
[1642622716083,4.217e-05,3125.5,3125.4,9.9904697]
[1642622716477,4.217e-05,3125.5,3125.4,7.1648]
[1642622716677,4.217e-05,3125.5,3125.4,10.09011155]
[1642622717077,4.217e-05,3125.5,3125.4,11.09011155]
[1642622717277,4.217e-05,3125.5,3125.4,9.79011155]
[1642622717481,4.217e-05,3125.5,3125.4,11.00711155]
[1642622717680,4.217e-05,3125.5,3125.4,12.13501155]
[1642622717881,4.217e-05,3125.5,3125.4,31.01515155]
[1642622718084,4.217e-05,3125.5,3125.4,12.29515155]
[1642622718282,4.217e-05,3125.5,3125.4,13.0401982]
[1642622718683,0.1279,3127.0,3125.4,4.98994665]
[1642622718885,7.33274984,3127.1,3125.4,4.98994665]
[1642622718886,0.1279,3126.6,3125.5,2.78614506]
[1642622719083,0.00625266,3126.6,3125.6,0.461]
[1642622719283,0.1279,3126.5,3125.7,2.75913066]
[1642622719482,0.1279,3126.5,3126.0,2.64413034]
[1642622719682,0.00511581,3126.4,3126.0,2.64413034]
[1642622720130,0.00454739,3126.3,3126.0,2.64413034]
[1642622720331,0.00454739,3126.3,3126.2,2.15842948]
[1642622720533,0.1279,3127.0,3126.2,2.15842948]
[1642622720730,0.1279,3127.0,3126.5,1.27242777]
[1642622720931,0.00795793,3126.9,3126.2,0.00842948]
[1642622721133,0.1279,3126.8,3126.5,1.0959471]
[1642622721333,0.1352895,3126.8,3126.5,1.0959471]
[1642622721534,0.00682108,3126.7,3126.5,1.0959471]
[1642622721734,0.00682108,3126.7,3126.2,0.00842948]
[1642622721933,0.00625266,3126.6,3126.2,0.00842948]
[1642622722337,1.1279,3127.0,3126.2,0.00842948]
[1642622722338,0.13358423,3126.5,3126.2,0.00842948]
[1642622722735,0.00511581,3126.4,3126.2,0.00842948]
[1642622723235,0.1279,3126.8,3126.2,0.00842948]
[1642622723236,0.00454739,3126.3,3126.2,0.00842948]
[1642622723589,2.40454739,3126.3,3126.2,0.00842948]
[1642622723776,2.40454739,3126.3,3125.1,6.66096359]
[1642622723777,0.00113399,3126.1,3125.1,3.8075]
[1642622724180,0.00284212,3126.0,3125.2,0.00170527]
[1642622724576,0.00227369,3125.9,3125.2,0.00170527]
[1642622724779,0.00227369,3125.9,3125.3,0.1279]
[1642622724981,0.00170527,3125.8,3125.3,0.1279]
[1642622725382,0.00113684,3125.7,3125.3,0.1279]
[1642622725582,0.00113684,3125.7,3125.4,1.36254249]
[1642622725783,0.00284212,3126.0,3125.8,1.1862606]
[1642622726183,0.00227369,3125.9,3125.8,1.1862606]
[1642622726584,0.00227369,3125.9,3125.8,3.8362606]
[1642622727424,0.00227369,3125.9,3125.8,2.65]
[1642622728025,0.00227369,3125.9,3125.8,2.65644252]
[1642622728625,0.00227369,3125.9,3125.8,4.05015234]
[1642622732073,0.00227369,3125.9,3125.8,4.252e-05]
[1642622732475,0.13017369,3125.9,3125.8,4.252e-05]
[1642622732673,1.8196283,3125.9,3125.8,3.20004252]
[1642622733076,2.1196283,3125.9,3125.8,3.20004252]
[1642622733276,2.4196283,3125.9,3125.8,3.2]
[1642622733476,2.1196283,3125.9,3125.8,3.2]
[1642622733684,1.73017369,3125.9,3125.8,3.2]
[1642622733882,2.42002736,3125.9,3125.8,3.2]
[1642622734082,3.42002736,3125.9,3125.8,3.2]
[1642622734484,2.42002736,3125.9,3125.8,3.2]
[1642622734828,0.43017369,3125.9,3125.8,3.2]
[1642622735027,0.00227369,3125.9,3125.8,3.2]
[1642622738230,0.00948024,3125.9,3125.8,3.20355635]
[1642622739376,0.00948024,3125.9,3125.8,5.30355635]
[1642622740275,0.00948024,3125.9,3125.8,3.20355635]
[1642622743122,0.00948024,3125.9,3125.8,3.20601137]
[1642622746370,0.00948024,3125.9,3125.8,5.40601137]
[1642622746972,0.00948024,3125.9,3125.8,3.20601137]
[1642622749376,1.10621423,3126.6,3125.9,2.7]
[1642622749574,1.70177625,3126.5,3125.8,3.20601137]
[1642622749826,2.00518679,3126.5,3125.8,3.20601137]
[1642622750034,2.12967625,3126.4,3125.8,3.20601137]
[1642622750229,1.70177625,3126.3,3125.8,3.20601137]
[1642622750430,4.73307439,3126.3,3125.8,3.20601137]
[1642622750629,0.4279,3126.4,3125.8,3.20601137]
[1642622750630,1.70348152,3126.2,3125.8,3.20601137]
[1642622750833,0.1279,3126.4,3126.1,0.00245502]
[1642622751234,1.0,3126.4,3126.1,0.00245502]
[1642622751431,0.1279,3126.3,3126.1,0.00245502]
[1642622751634,1.1279,3126.5,3126.1,0.00245502]
[1642622751834,0.00113685,3126.4,3126.1,0.00245502]
[1642622752033,0.1279,3126.3,3126.1,0.00245502]
[1642622752434,0.1279,3126.3,3126.2,1.30761446]
[1642622753136,0.1279,3126.3,3126.2,2.74919759]
[1642622754681,0.00746281,3126.4,3126.2,2.74919759]
[1642622758124,0.00746281,3126.4,3126.3,0.00246338]
[1642622758324,1.63315715,3126.4,3126.3,0.00246338]
[1642622758724,0.00746281,3126.4,3126.3,0.00246338]
[1642622758924,1.62580224,3126.4,3126.3,0.00246338]
[1642622759531,0.00746281,3126.4,3126.3,0.00246338]
[1642622762177,0.00746281,3126.4,3126.3,1.41482088]
[1642622764585,3.24094449,3127.2,3126.4,5.65]
[1642622764830,0.1279,3127.7,3126.4,5.65]
[1642622764831,3.24940373,3127.7,3127.0,0.01247485]
[1642622765039,7.82,3128.0,3127.0,0.01247485]
[1642622765040,7.82,3128.0,3127.1,0.5889]
[1642622765235,0.5,3128.0,3127.3,19.94695842]
[1642622765433,0.5,3128.0,3127.7,0.01237596]
[1642622765637,0.5,3128.0,3127.7,0.86047596]
[1642622765837,0.5,3128.0,3127.8,0.461]
[1642622766135,2.9355814,3129.0,3127.8,0.761]
[1642622766136,3.24940373,3128.9,3127.8,0.761]
[1642622766335,4.39000373,3129.1,3127.8,0.761]
[1642622766534,0.00454739,3128.7,3127.8,3.6965814]
[1642622766733,0.00454739,3128.7,3127.9,2.34062903]
[1642622766936,0.00397897,3128.6,3128.5,1.45720437]
[1642622767337,0.00625266,3128.6,3128.5,1.45720437]
[1642622768337,1.40668415,3128.4,3128.0,0.00245697]
[1642622768780,0.13007369,3128.3,3128.0,0.00245697]
[1642622769179,0.00170527,3128.2,3128.0,0.00245697]
[1642622769580,0.00113685,3128.1,3128.0,0.00245697]
[1642622770384,0.00113685,3128.1,3127.7,2.60521019]
[1642622771185,1.25228813,3128.1,3127.7,2.60521019]
[1642622771389,1.25115128,3128.0,3127.7,2.60521019]
[1642622771585,0.00113685,3128.1,3127.7,2.60521019]
[1642622771586,1.25115128,3127.9,3127.7,2.60521019]
[1642622771785,1.25115128,3127.8,3127.4,0.00284212]
[1642622772185,0.00113685,3128.1,3127.3,0.00341054]
[1642622772831,0.00113685,3128.1,3127.6,1.2889115]
[1642622773030,0.00113685,3128.1,3127.7,1.32655468]
[1642622773232,0.00113685,3128.1,3127.7,1.32769153]
[1642622773434,1.25258992,3128.1,3127.7,1.32769153]
[1642622773632,1.25145307,3128.0,3127.8,2.83205071]
[1642622773831,0.00113685,3128.1,3127.8,2.83205071]
[1642622774031,0.00113685,3128.1,3127.7,4.25188918]
[1642622774233,0.00113685,3128.1,3127.7,4.21475961]
[1642622774632,0.00113685,3128.1,3127.7,4.81475961]
[1642622774832,1.40668415,3128.4,3127.8,5.65]
[1642622775034,1.40668415,3128.4,3127.9,3.07395368]
[1642622775235,0.00113684,3128.3,3127.9,0.42893685]
[1642622775437,0.00113684,3128.3,3127.9,0.7278]
[1642622775640,0.00113684,3128.3,3127.9,0.4278]
[1642622775837,0.00113684,3128.3,3127.9,0.1278]
[1642622776085,0.00113684,3128.3,3128.2,2.51862366]
[1642622777679,0.00113684,3128.3,3128.2,1.23502654]
[1642622778877,0.00113684,3128.3,3128.2,2.77517518]
[1642622779078,0.00113684,3128.3,3128.2,1.23502654]
[1642622779484,0.12893684,3128.3,3128.2,1.23502654]
[1642622779679,0.00113684,3128.3,3128.2,1.23502654]
[1642622780333,0.00113684,3128.3,3127.8,0.46270527]
[1642622780334,0.00113684,3128.3,3127.8,0.00170527]
[1642622780734,1.17215718,3128.3,3127.4,0.00397897]
[1642622780934,0.1278,3128.2,3127.4,0.00397897]
[1642622781536,0.1278,3128.2,3127.9,1.33446928]
[1642622782136,0.1278,3128.2,3127.8,1.51341916]
[1642622782536,0.1278,3128.2,3127.9,0.00113685]
[1642622783138,0.01198951,3128.1,3127.9,0.00113685]
[1642622783339,0.01198951,3128.1,3127.6,1.16206348]
[1642622783587,0.01198951,3128.1,3127.7,0.0022737]
[1642622784789,0.27880937,3127.9,3127.4,0.00397897]
[1642622784989,0.27880937,3127.9,3127.3,0.00454739]
[1642622784990,0.1278,3127.8,3127.3,0.00454739]
[1642622785889,0.1278,3127.8,3127.7,3.2]
[1642622786190,0.1278,3127.8,3127.7,3.2022737]
[1642622787336,1.40028158,3127.8,3127.7,3.2022737]
[1642622787637,0.1278,3127.8,3127.7,3.2022737]
[1642622787836,2.3278,3127.8,3127.7,3.2022737]
[1642622788037,3.33974969,3127.8,3127.7,3.2022737]
[1642622788239,4.49646651,3127.8,3127.7,3.2022737]
[1642622788537,4.79646651,3127.8,3127.7,3.2022737]
[1642622788937,1.29646651,3127.8,3127.7,3.2022737]
[1642622789142,0.01194969,3127.8,3127.7,3.2022737]
[1642622791888,2.31194969,3127.8,3127.7,3.2022737]
[1642622792079,2.61194969,3127.8,3127.7,3.2022737]
[1642622792280,3.76957922,3127.8,3127.7,3.2022737]
[1642622792580,3.61194969,3127.8,3127.7,3.2022737]
[1642622792781,4.76979267,3127.8,3127.7,3.2022737]
[1642622794682,4.89759267,3127.8,3127.7,3.2022737]
[1642622795734,2.46979267,3127.8,3127.7,3.2022737]
[1642622795937,1.16979267,3127.8,3127.7,3.2022737]
[1642622796135,0.01194969,3127.8,3127.7,3.2022737]
[1642622797938,1.17294891,3127.8,3127.7,3.2022737]
[1642622798339,4.27264873,3127.8,3127.7,3.2022737]
[1642622798587,5.87264873,3127.8,3127.7,3.2022737]
[1642622799081,5.87264873,3127.8,3127.7,0.21268589]
[1642622799380,5.65,3127.7,3127.2,2.15889713]
[1642622799584,1.79567671,3127.3,3127.2,2.15889713]
[1642622799781,2.65667593,3127.3,3127.2,2.15889713]
[1642622800184,3.65667593,3127.3,3127.2,2.15889713]
[1642622800384,7.06662191,3127.3,3127.2,2.15889713]
[1642622800586,3.95667593,3127.3,3127.2,2.15889713]
[1642622801087,3.95667593,3127.3,3127.2,9.713e-05]
[1642622801088,5.93875577,3127.3,3127.2,9.713e-05]
[1642622801288,5.7779,3127.2,3125.8,1.5539966]
[1642622801488,4.69808193,3127.1,3125.8,1.5539966]
[1642622801687,4.69808193,3127.1,3125.8,1.56479664]
[1642622801688,2.16099922,3127.0,3125.8,1.56479664]
[1642622801887,2.96049365,3126.9,3125.8,1.56479664]
[1642622802092,2.16099922,3126.8,3126.0,1.35196678]
[1642622802330,1.0,3126.8,3126.0,1.35196678]
[1642622802530,1.0,3127.1,3126.1,0.00909477]
[1642622802730,1.1357112,3127.0,3126.1,0.00909477]
[1642622803130,5.2912,3127.2,3126.1,0.00909477]
[1642622803131,0.01183015,3126.9,3126.1,0.00909477]
[1642622803331,0.01183015,3126.9,3126.2,1.55552716]
[1642622803530,0.01183015,3126.9,3126.7,1.45115497]
[1642622803733,0.01183015,3126.9,3126.8,1.45184595]
[1642622803930,0.01183015,3126.9,3126.8,1.45696176]
[1642622805938,0.01183015,3126.9,3126.8,4.45696176]
[1642622807896,0.01183015,3126.9,3126.8,6.01193283]
[1642622809938,0.01183015,3126.9,3126.8,4.56008688]
[1642622810330,0.01183015,3126.9,3126.8,3.00511581]
[1642622810730,0.01183015,3126.9,3126.8,4.56240228]
[1642622811131,0.01183015,3126.9,3126.8,3.00511581]
[1642622811733,1.15419498,3126.9,3126.8,3.00511581]
[1642622812834,1.45419498,3126.9,3126.8,3.00511581]
[1642622813040,1.58209498,3126.9,3126.8,3.00511581]
[1642622814708,1.45419498,3126.9,3126.8,3.00511581]
[1642622814913,1.15419498,3126.9,3126.8,3.00511581]
[1642622816113,0.01183015,3126.9,3126.8,3.00511581]
[1642622817213,0.01183015,3126.9,3126.8,4.55979448]
[1642622818027,0.01183015,3126.9,3126.8,4.56025787]
[1642622818628,0.01183015,3126.9,3126.8,5.79774331]
[1642622821786,1.1594023,3126.9,3126.8,4.56025787]
[1642622822284,1.1594023,3126.9,3126.8,3.00511581]
[1642622823585,4.3094023,3126.9,3126.8,3.00511581]
[1642622823984,5.3094023,3126.9,3126.8,3.00511581]
[1642622824586,6.51122491,3126.9,3126.8,3.00511581]
[1642622825032,6.81122491,3126.9,3126.8,3.00511581]
[1642622825233,6.93912491,3126.9,3126.8,3.00511581]
[1642622825435,6.93912491,3126.9,3125.7,3.6913]
[1642622825436,5.4,3126.8,3125.7,3.6913]
[1642622825638,1.73647215,3126.7,3125.8,1.52658417]
[1642622825834,1.73647215,3126.7,3125.8,1.5322684]
[1642622825835,1.14757215,3126.6,3125.8,1.5322684]
[1642622826034,0.1279,3126.5,3125.9,1.52658417]
[1642622826334,2.57854321,3126.4,3126.0,1.53113155]
[1642622826534,1.14757215,3126.3,3126.1,1.52658417]
[1642622826736,2.14757215,3126.3,3126.2,1.48614199]
[1642622826935,1.14757215,3126.3,3126.2,1.48955253]
[1642622827135,1.14757215,3126.3,3126.2,0.00341054]
[1642622827339,1.14757215,3126.4,3126.2,0.00341054]
[1642622827536,1.1341,3126.8,3125.7,1.48620644]
[1642622827738,0.01183015,3126.9,3126.3,2.64199617]
[1642622827739,1.21979107,3126.7,3126.3,2.64199617]
[1642622827938,0.01183015,3126.9,3126.4,4.27110822]
[1642622828141,1.18015614,3126.8,3126.5,1.48620644]
[1642622828340,0.1279,3127.5,3126.6,2.74578034]